Workbook

Sheet Disclaimer

Sheet INFO
A1: Intended use of this document Those responsible for the drafting of actual individual EPB standards shall - read and understand the following documents - prCEN/TS 16628 Basic Principles (in short "BP") - prCEN/TS 16629 Detailed Technical Rules (in short "DTR") - prEN 15603:2013 ("Overarching Standard", in short "OA")) - prCEN/TR 15615:2013 Technical report to overarching standard; - Prepare their individual EPB standard according to CEN rules, BP, DTR and OA - Prepare the accompanying technical report using the dedicated template - Prepare an accompanying XLS spreadsheet, to demonstrate inputs, output and calculation chain. This sample excel spreadsheet provides a template to help in this task.
A2: Why an Excel spradsheet? To demonstrate the validity and required data I/O for the calculation procedure defined in the standard: - list of all input needed --> sheet "Method_input" - list of intended output --> sheet "Method_output" - calculation sequence --> sheet "Method_calculation"
A3: The example is prepared for a simple procedure. The sheet calculation may need extensions such as: - using several columns when operating on arrays - refering to a subset of sheets input/calculation/output to describe a subroutine For complex tasks MACRO can be used. This sheet does not support calculation methods that take into account data in a different time-step than that that is being calculated. A version that allows taking into account values at previous time step will be developed.
A4: LIST OF AVAILABLE SHEETS
A5: Simplified_input_correlation Use this sheet to demontrate simplified input correlation, if any in your standard. Typically these correlations are defined in annex C of the standard. They provide the normal detailed input of a procedure, based on a simplified input data set.
A6: Product_descriptive_data Use this sheet to list product descriptive data (typically with case identifiers). Some examples of selection tables are given. The output from the selection tables (green cells) can be linked to the sheet "method_input" for use in the procedure.
A7: Product_tech_data Use this sheet to list product technical data (typically numerical values and data). Some examples are given with default that may be typically included in annex A of the standard. The output from the selection tables (green cells) can be linked to the sheet "method_input" for use in the procedure.
A8: Process_design_data Use this sheet to list system descriptive data (typically with case identifiers). Some examples of selection tables are given. The output from the selection tables (green cells) can be linked to the sheet "method_input" for use in the procedure.
A9: Data_catalogue_example It is an example of how a data catalogue can work, filtering the catalogue of product properties based on product descriptive data. You can optionally build a similar catalogue for products involved in your standard.
A10: Input_series Prepare in this sheet data for each time step if you want to test the procedure on more steps.
A11: Method_input List in this sheet all the input required for the calculation in one time step. THIS SHEET IS REQUIRED TO DEMONSTRATE THE REQUIRED DATA INPUT.
A12: Method_calculation Detail in this sheet your calculation procedure. There should be one calculation in one cell for each equation in the standard. THIS SHEET IS REQUIRED TO DEMONSTRATE THE CALCULATION PROCEDURE.
A13: Method_output List in this sheet all the intended output of the procedure. THIS SHEET IS REQUIRED TO DEMONSTRATE THE AVAILABLE DATA OUTPUT.
A14: Output_series Series alculation results are stored in this sheet. Calculation for each time step is launched in this sheet.

Sheet Data_catalogue_example
A1: EXAMPLE OF A PRODUCT DATA CATALOGUE Product descriptive data is used to filter the actual catalogue. Unsuitable prioducts are indicated by "Non available" The desired product in the catalogue is then selected via the main list --> alla data is available with one click. NOTE: Default data are also part of the catalogue. This sample catalogue is connected to the "Method input" sheet. NOTE: This highlights the high importance of the user interface and of a correct data input structuring. | J1: DATA FOR EACH BOILER | W1: SELECTION OF BOILERS COMPATIBLE WITH THE QUALITATIVE DESCRIPTION
A4: Product descriptive data (qualitative)
A7: Product technical data
E8: i=-1 | F8: i=+1
A9: Energy required for domestic hot water use (test condition) | D9: QW;sol;us;an | E9: 2000 | F9: 3000 | G9: kWh
A10: Auxiliary energy consumption | D10: WW;sol;aux;an | E10: 60 | F10: 60 | G10: kWh
A11: Solar contribution to the heat use | D11: QW;sol;out;an | E11: =E9*0.4 -> 800 | F11: =F9*0.4 -> 1200 | G11: kWh
A12: =IF(A18=1,"Solar contribution to the heat use","Backup contribution to the heat use") -> Backup contribution to the heat use | D12: =IF(A18=1,"QW;sol;out;an","QW;bu;out;an") -> QW;bu;out;an | E12: =E9*0.6 -> 1200 | F12: =F9*0.6 -> 1800 | G12: kWh
A15: System design data
A17: Product main layout type | C17: SOL_TYPE
A18: 2 | C18: =INDEX(C20:C21,A18) -> PAR
A20: Preheater or solar-only | C20: SER
A21: Solar-plus-supplementary | C21: PAR
A24: Orientation of the collector | C24: ƒcol
A25: 1 | B25: ƒcol | C25: =INDEX(C27:C29,A25) -> 1
A26: Options: | C26: Values:
A27: South east - South west / -20o - +5o | C27: 1
A28: East - West / minimum shading | C28: 0.8
A29: other cases | C29: 0
A31: Location of the heat storage tank | C31: STO_LOC | D31: ƒrbl
A32: 2 | B32: ƒcol | C32: =INDEX(C34:C36,A32) -> NHS | D32: =INDEX(D34:D36,A32) -> 0.5
A33: Options: | C33: Values: | D33: Values:
A34: Heated space | C34: HS | D34: 1
A35: Not heated space | C35: NHS | D35: 0.5
A36: Outside | C36: OUT | D36: 0
A38: Insulation on backup loop | C38: ƒbu;ins
A39: 1 | B39: ƒbu;ins | C39: =INDEX(C41:C42,A39) -> 0.02
A40: Options: | C40: Values:
A41: Insulated | C41: 0.02
A42: Not insulated | C42: 0.05
A55: Operating conditions
A59: System design data

Sheet Input_series
A1: Load here the value of input variables for each time-step (time series) Set the number of input data for each time steps and the number of time step before running The macro from sheet "Output series". Local constant data may be input via the sheets "Constants"
A3: Time series for data input
A4: Settings
A5: Number of input data | C5: 6
A6: Number of time steps | C6: 12
A8: Description | B8: Calculation interval duration | C8: Solar irradiation | D8: Outside air tempertaure | E8: Heat use hot water | F8: Auxiliary backup heater | G8: Heat losses backup heater
A9: Symbol | B9: tci | C9: Isol | D9: ϑ | E9: QW;sol;us | F9: WW;bu;aux;nom | G9: QW;bu;ls;nom
A10: Unit | B10: h | C10: W/m2 | D10: °C | E10: kWh | F10: kWh | G10: kWh
A11: Origin | C11: M1-13 | D11: M1-13 | E11: M8-2 | F11: M8-8.x | G11: M8-8.x
A13: Time stamp | D13: VALUES
A14: 1 | B14: 744 | C14: 67 | D14: 0.6 | E14: =5.8/24*B14 -> 179.8 | F14: =B14*0.003 -> 2.232 | G14: =E14*0.05 -> 8.99
A15: 2 | B15: 672 | C15: 108 | D15: 1.1 | E15: =5.8/24*B15 -> 162.4 | F15: =B15*0.003 -> 2.016 | G15: =E15*0.05 -> 8.12
A16: 3 | B16: 744 | C16: 145 | D16: 5.6 | E16: 179.8 | F16: 2.232 | G16: 8.99
A17: 4 | B17: 720 | C17: 184 | D17: 8.3 | E17: 174 | F17: 2.16 | G17: 8.7
A18: 5 | B18: 744 | C18: 204 | D18: 13.3 | E18: 179.8 | F18: 2.232 | G18: 8.99
A19: 6 | B19: 720 | C19: 209 | D19: 16.7 | E19: 174 | F19: 2.16 | G19: 8.7
A20: 7 | B20: 744 | C20: 210 | D20: 18.3 | E20: 179.8 | F20: 2.232 | G20: 8.99
A21: 8 | B21: 744 | C21: 200 | D21: 18.3 | E21: 179.8 | F21: 2.232 | G21: 8.99
A22: 9 | B22: 720 | C22: 177 | D22: 15 | E22: 174 | F22: 2.16 | G22: 8.7
A23: 10 | B23: 744 | C23: 121 | D23: 9.4 | E23: 179.8 | F23: 2.232 | G23: 8.99
A24: 11 | B24: 720 | C24: 67 | D24: 4.4 | E24: 174 | F24: 2.16 | G24: 8.7
A25: 12 | B25: 744 | C25: 53 | D25: 1.7 | E25: 179.8 | F25: 2.232 | G25: 8.99
A27: total | B27: =SUM(B14:B26) -> 8760 | C27: =AVERAGE(C14:C26) -> 145.4166667 | E27: =SUM(E14:E26) -> 2117

Sheet Method_input
A1: THIS IS A MANDATORY SHEET All input data for the method shall be listed here. In the simplest version, values for data input in column D (both green and blue background) may be inserted manually. Varying data (green background) can be fed from the "input_series" sheet. In this sample data sheet, product data (blue background) is linked to a sample catalogue built in the "Detailed_input" sheet
A4: Name | B4: Symbol | C4: Unit | D4: Value | E4: Range | F4: Origin | G4: Varying | H4: Notes
A5: Operating conditions data
A6: Calculation interval duration | B6: tci | C6: h | D6: 744 | E6: 672 … 8769 | G6: YES
A7: Solar irradiation | B7: Isol;S45 | C7: W/m2 | D7: 53 | E7: 0 … 1200 | F7: M1-13 | G7: Yes
A8: Outside air tempertaure | B8: ϑoutside | C8: °C | D8: 1.7 | E8: -20 … 30 | F8: M1-13 | G8: Yes
A9: Heat use hot water | B9: QW;sol;us | C9: kWh | D9: 179.8 | E9: ≥ 0 | F9: M8-2 | G9: YES
A10: Auxiliary backup heater | B10: WW;bu;aux;nom | C10: kWh | D10: 2.232 | E10: ≥ 0 | F10: M8-8.x | G10: YES
A11: Heat losses backup heater | B11: QW;bu;ls;nom | C11: kWh | D11: 8.99 | E11: ≥ 0 | F11: M8-8.x | G11: YES
A15: Product data
A16: Product description data
B17: SOL_LAYOUT | D17: =Data_catalogue_example!C18 -> PAR
A20: Product technical data
A21: Test result QW;sol;us i=-1
A22: Auxiliary energy consumption | B22: WW;sol;aux;an,i=-1 | C22: kWh | D22: =Data_catalogue_example!E10 -> 60
A23: Energy required for domestic hot water use | B23: QW;sol;us;an,i=-1 | C23: kWh | D23: =Data_catalogue_example!E9 -> 2000
A24: SOL_LAYOUT=SER
A25: Solar contribution to the heat use | B25: QW;sol;out;an,i=-1 | C25: kWh | D25: =Data_catalogue_example!E11 -> 800
A26: SOL_LAYOUT=PAR
A27: Backup contribution to the heat use | B27: QW;bu;out;an,i=-1 | C27: kWh | D27: =Data_catalogue_example!E12 -> 1200
A28: Test result QW;sol;us i=+1
A29: Auxiliary energy consumption | B29: WW;sol;aux;an,i=+1 | C29: kWh | D29: =Data_catalogue_example!F10 -> 60
A30: Energy required for domestic hot water use | B30: QW;sol;us;an,i=+1 | C30: kWh | D30: =Data_catalogue_example!F9 -> 3000
A31: SOL_LAYOUT=SER
A32: Solar contribution to the heat use | B32: QW;sol;out;an,i=+1 | C32: kWh | D32: =Data_catalogue_example!F11 -> 1200
A33: SOL_LAYOUT=PAR
A34: Backup contribution to the heat use | B34: QW;bu;out;an,i=+1 | C34: kWh | D34: =Data_catalogue_example!F12 -> 1800
A36: Process design
A41: Control type data
A44: Constants
A45: Water specific heat | B45: cp,w | C45: Wh/kg°C | D45: 1.16

Sheet Method_calculation
A1: THIS IS A MANDATORY SHEET One time step calculation shall be described here. For each calculation step (= 1 row) data for the formula in column D shall be taken from the "Method_input" sheet or previous calculation steps. Include in the column "Formula ref" its number in the standard text. The example is based on EN 15316-4-1:2008 Copy and paste a copy of the equation into column "Formula" Use the column note for information on the calculation
A3: Description | B3: Symbol | C3: Unit | D3: Value | E3: Formula ref | F3: Formula | G3: Notes
A5: Test results:
A6: auxiliary energy consumption (test) | B6: WW;sol;aux;an | C6: kWh | D6: =Ww_sol_aux_1+(Ww_sol_aux_2-Ww_sol_aux_1)*(Qw_sol_us_an-Qw_sol_us_1)/(Qw_sol_us_2-Qw_sol_us_1) -> 60 | F6: Linear interpolation i=-1 .. i=+1
A7: solar contribution (test) | B7: QW;sol;out;an | C7: kWh | D7: =QW_sol_out_1+(QW_sol_out_2-QW_sol_out_1)*(Qw_sol_us_an-Qw_sol_us_1)/(Qw_sol_us_2-Qw_sol_us_1) -> 846.8 | F7: Linear interpolation i=-1 .. i=+2 | G7: SOL_TYPE="SER" only
A8: backup conribution (test) | B8: QW;bu;out;an | C8: kWh | D8: =Qw_bu_out_1+(Qw_bu_out_2-Qw_bu_out_1)*(Qw_sol_us_an-Qw_sol_us_1)/(Qw_sol_us_2-Qw_sol_us_1) -> 1270.2 | F8: Linear interpolation i=-1 .. i=+3 | G8: SOL_TYPE="PAR" only
A9: Preparations:
A10: solar irradiation | B10: Isol | C10: W/m2 | D10: =Method_input!D7*Data_catalogue_example!C25 -> 53 | E10: (1)
A11: monthly distribution | B11: ƒdist | C11: - | D11: =D10*Input_series!B14/(Isol_s45_an*tci_an) -> 0.030954979 | E11: (2)
A12: Performance calculations
A13: backup contribution | B13: QW;bu;out | C13: kWh | D13: =IF(SOL_TYPE="SER",Method_input!D9-D11*D7,Method_input!D9-D11*(Qw_sol_us_an-D8)) -> 153.5873238 | E13: (3) or (4)
A14: solar & backup output | B14: Qw;sol;bu;out | C14: kWh | D14: =Method_input!D9 -> 179.8 | E14: (5)
A15: auxiliary energy consumption (test) | B15: Ww;sol;aux | C15: kWh | D15: =D11*D6 -> 1.85729874 | E15: (6)
A16: Heat losses
A17: solar fraction | B17: fsolar | C17: - | D17: =(Method_input!D9-D13)/Method_input!D9 -> 0.1457879656 | E17: (7) | G17: intermediate result
A18: air temperature storage | B18: ϑst;amb | C18: oC | D18: =IF(STO_LOC="HS",20,IF(STO_LOC="NHS",(20+Method_input!D8)/2,Method_input!D8)) -> 10.85
A19: storage heat losses solar | B19: Qw;sol;st;ls | C19: kWh | D19: =(60-D18)*(0.37+2.06*(Method_input!D9/Method_in)^0.4)*D17*Method_in/1000 -> 8.195115358 | E19: (8)
A20: storage heat losses backup | B20: Qw;bu;st;ls | C20: kWh | D20: =IF(Data_catalogue_example!C18="PAR",(60-D18)*(0.37+2.06*(Method_input!D9/Method_in)^0.4)*Method_in/1000,0) -> 56.21256407 | E20: (9)
A21: heat losses backup loop | B21: QW;bu;dis;ls | C21: kWh | D21: =Data_catalogue_example!C39*(1-D13) -> -3.051746476 | E21: (10)
A22: recoverable losses | B22: QW;sol;ls;rbl | C22: kWh | D22: =Data_catalogue_example!D32*(D19+D20+D21) -> 30.67796648 | E22: (11) | G22: no test for space heating implemented
A23: reduced backup auxiliary | B23: WW;bu;aux | C23: kWh | D23: =Method_input!D10*(1-D17) -> 1.906601261 | E23: (12)
A24: reduced backup heat losses | B24: QW;bu;ls | C24: kWh | D24: =IF(D17<0.8,Method_input!D11,Method_input!D11*(1-D17)) -> 8.99 | E24: (13)

Sheet Method_output
A1: THIS IS A MANDATORY SHEET Output of one step calculation shall be indicated here. Each cell in the column value shall be a reference to a single cell in the "Method_calculation" sheet. The macro will take the calculation step results and fill the values table in the "Output_series" sheet.
A3: Description | B3: Unit | D3: Value
A9: Name | B9: Symbol | C9: Unit | D9: Value | E9: Intended destination | F9: Notes
A11: Backup heat contribution | B11: QW;bu;out | C11: kWh | D11: =Method_calculation!D13 -> 153.5873238 | E11: M8-8.x
A12: Heat output to distribution | B12: QW;sol;bu;out | C12: kWh | D12: =Method_calculation!D14 -> 179.8 | E12: M8-6
A13: auxiliary energy consumption | B13: WW;sol;aux | C13: kWh | D13: =Method_calculation!D15 -> 1.85729874 | E13: M8-1
A14: Recocoverable heat losses | B14: QW;sol;ls;rbl | C14: kWh | D14: =Method_calculation!D22 -> 30.67796648 | E14: M2-2
A15: reduced auxiliary energy consumption backup heater | B15: WW;bu;aux | C15: kWh | D15: =Method_calculation!D23 -> 1.906601261 | E15: M8-8.x
A16: reduced heat lsses backup heater | B16: QW;bu;ls | C16: kWh | D16: =Method_calculation!D24 -> 8.99 | E16: M8-8.x

Sheet Output_series
A1: Here a time series can be generated to test the method with variable input data. Data input series must be inserted in the "input_series" sheet before.
A3: Time series for data output
A4: Settings
A5: Number of output data | C5: 6
A7: This table will be filled automatically via a macro scanning the "input_series" and performing for each time step the calculation defined in the "Method_calculation" sheet.
A8: Press CLEAR OUTPUT to reset output series
A9: Press "Run method" to start calculation of individual time steps
B13: Backup heat | C13: Heat output | D13: auxiliary energy consumption | E13: Recocoverable heat | F13: reduced auxiliary energy backup | G13: reduced losses backup
B14: kWh | C14: kWh | D14: kWh | E14: kWh | F14: kWh | G14: kWh
A15: Symbol | B15: QW;bu;out | C15: QW;sol;bu;out | D15: WW;sol;aux | E15: QW;sol;ls;rbl | F15: WW;bu;aux | G15: QW;bu;ls
A16: Destination | B16: M8-8.x | C16: M8-6 | D16: M8-1 | E16: M2-2 | F16: M8-8.x | G16: M8-8.x
A17: Time stamp | D17: VALUES
A18: 1 | B18: 146.6632206 | C18: 179.8 | D18: 2.347905954 | E18: 32.20206175 | F18: 1.820646877 | G18: 8.99
A19: 2 | B19: 108.98549 | C19: 162.4 | D19: 3.784684225 | E19: 32.86212148 | F19: 1.352923324 | G19: 8.12
A20: 3 | B20: 108.0860745 | C20: 179.8 | D20: 5.081289006 | E20: 36.68585623 | F20: 1.341758166 | G20: 8.99
A21: 4 | B21: 82.99750143 | C21: 174 | D21: 6.447980531 | E21: 37.82379591 | F21: 1.030313811 | G21: 8.7
A22: 5 | B22: 78.9059255 | C22: 179.8 | D22: 7.148847981 | E22: 37.92108081 | F22: 0.9795218338 | G22: 8.99
A23: 6 | B23: 70.63303152 | C23: 174 | D23: 7.324064843 | E23: 36.04542799 | F23: 0.8768238395 | G23: 8.7
A24: 7 | B24: 75.93845272 | C24: 179.8 | D24: 7.359108215 | E24: 36.10445316 | F24: 0.9426842407 | G24: 8.99
A25: 8 | B25: 80.88424069 | C25: 179.8 | D25: 7.008674491 | E25: 35.41242927 | F25: 1.004080229 | G25: 8.99
A26: 9 | B26: 86.45955301 | C26: 174 | D26: 6.202676924 | E26: 34.49772955 | F26: 1.073291003 | G26: 8.7
A27: 10 | B27: 119.9559656 | C27: 179.8 | D27: 4.240248067 | E27: 33.33713584 | F27: 1.489108539 | G27: 8.99
A28: 11 | B28: 140.8632206 | C28: 174 | D28: 2.347905954 | E28: 30.09155963 | F28: 1.748646877 | G28: 8.7
A29: 12 | B29: 153.5873238 | C29: 179.8 | D29: 1.85729874 | E29: 30.67796648 | F29: 1.906601261 | G29: 8.99
A31: Annual | B31: =SUM(B18:B30) -> 1253.96 | C31: =SUM(C18:C30) -> 2117 | D31: 61.15068493 | E31: 413.6616181 | F31: 15.5664 | G31: 105.85

Sheet History
B2: Date | C2: Version scope | D2: Changes, notes
B4: 2012-07-04 | C4: Issued for discussion in CTL
B5: 2012-08-24 | C5: Issued for comments in TC 371 | D5: Improved readability
B6: 2013-07-03 | C6: Revised for the toolkit
